bitfinex/quotes_ETHUSD_20220115
["timestamp","ask_amount","ask_price","bid_price","bid_amount"]
[1642275713635,6.07220123,3348.7,3348.4,1.12631684]
[1642275714441,0.01082776,3348.6,3348.4,1.12631684]
[1642275714939,6.07220123,3348.7,3348.4,1.12631684]
[1642275715437,6.84920123,3348.7,3348.4,1.12631684]
[1642275716883,6.84920123,3348.7,3348.5,0.03230856]
[1642275717088,6.84920123,3348.7,3348.6,1.20882585]
[1642275717299,6.84920123,3348.7,3348.6,1.15882585]
[1642275717486,6.84920123,3348.7,3348.6,2.53417749]
[1642275717487,6.8509065,3348.7,3348.6,2.53417749]
[1642275718485,7.6279065,3348.7,3348.6,2.53417749]
[1642275718885,6.6279065,3348.7,3348.6,2.53417749]
[1642275720131,6.5779065,3348.7,3348.6,2.53417749]
[1642275721731,9.9093811,3348.7,3348.6,2.53417749]
[1642275723131,12.9093811,3348.7,3348.6,2.53417749]
[1642275724987,13.6863811,3348.7,3348.6,2.53417749]
[1642275727731,11.1319065,3348.7,3348.6,2.53417749]
[1642275728032,13.68629944,3348.7,3348.6,2.53417749]
[1642275728232,14.46329944,3348.7,3348.6,2.53417749]
[1642275731483,15.24029944,3348.7,3348.6,2.53417749]
[1642275734642,16.01729944,3348.7,3348.6,2.53417749]
[1642275735838,10.39984211,3348.7,3348.6,2.53417749]
[1642275736637,12.95408793,3348.7,3348.6,2.53417749]
[1642275737743,13.73108793,3348.7,3348.6,2.53417749]
[1642275740087,13.68108793,3348.7,3348.6,2.53417749]
[1642275740987,14.45808793,3348.7,3348.6,2.53417749]
[1642275744238,15.23508793,3348.7,3348.6,2.53417749]
[1642275747290,16.01208793,3348.7,3348.6,2.53417749]
[1642275747490,16.01038266,3348.7,3348.6,2.53417749]
[1642275748592,16.01038266,3348.7,3348.6,2.23417749]
[1642275750534,16.78738266,3348.7,3348.6,2.23417749]
[1642275752638,16.78738266,3348.7,3348.6,1.37535164]
[1642275752639,16.90678266,3348.7,3348.6,1.37535164]
[1642275753784,17.68378266,3348.7,3348.6,1.37535164]
[1642275756887,18.46078266,3348.7,3348.6,1.37535164]
[1642275760140,19.23778266,3348.7,3348.6,1.37535164]
[1642275761584,19.11838266,3348.7,3348.6,1.37535164]
[1642275762188,19.23778266,3348.7,3348.6,1.37535164]
[1642275762785,20.06711948,3348.7,3348.6,1.37535164]
[1642275763187,20.84411948,3348.7,3348.6,1.37535164]
[1642275765641,20.72471948,3348.7,3348.6,1.37535164]
[1642275766345,21.50171948,3348.7,3348.6,1.37535164]
[1642275769391,22.27871948,3348.7,3348.6,1.37535164]
[1642275769595,21.44938266,3348.7,3348.6,1.37535164]
[1642275772641,22.22638266,3348.7,3348.6,1.37535164]
[1642275775745,23.00338266,3348.7,3348.6,1.37535164]
[1642275776988,23.12278266,3348.7,3348.6,1.37535164]
[1642275777789,23.00338266,3348.7,3348.6,1.37535164]
[1642275778392,23.00338266,3348.7,3348.6,6.51036547]
[1642275778793,23.78038266,3348.7,3348.6,6.51036547]
[1642275778991,23.78038266,3348.7,3348.6,2.51036547]
[1642275782045,24.55738266,3348.7,3348.6,2.51036547]
[1642275785195,25.33438266,3348.7,3348.6,2.51036547]
[1642275786195,25.33438266,3348.7,3348.6,2.50599403]
[1642275786996,25.33438266,3348.7,3348.6,1.3709802]
[1642275788438,26.11138266,3348.7,3348.6,2.4861104]
[1642275791692,26.88838266,3348.7,3348.6,2.4861104]
[1642275792292,26.88838266,3348.7,3348.6,1.3709802]
[1642275794941,27.66538266,3348.7,3348.6,1.3709802]
[1642275797240,27.78478266,3348.7,3348.6,1.3709802]
[1642275797641,27.68372202,3348.7,3348.6,1.3709802]
[1642275798243,28.46072202,3348.7,3348.6,1.3709802]
[1642275799990,28.34132202,3348.7,3348.6,1.3709802]
[1642275800190,28.34132202,3348.7,3348.6,1.3839172]
[1642275800392,28.34132202,3348.7,3348.6,1.3709802]
[1642275801489,29.11832202,3348.7,3348.6,1.3709802]
[1642275804763,29.89532202,3348.7,3348.6,1.3709802]
[1642275805764,29.89532202,3348.7,3348.6,2.57229261]
[1642275805765,28.18027489,3348.7,3348.6,2.57229261]
[1642275807992,28.95727489,3348.7,3348.6,2.57229261]
[1642275810951,28.95727489,3348.7,3348.6,2.58394161]
[1642275811141,29.73427489,3348.7,3348.6,2.58394161]
[1642275813393,29.73427489,3348.7,3348.6,2.70334161]
[1642275814394,30.51127489,3348.7,3348.6,2.58394161]
[1642275817651,31.28827489,3348.7,3348.6,2.58394161]
[1642275818448,31.23827489,3348.7,3348.6,2.58394161]
[1642275819351,31.23827489,3348.7,3348.6,1.3826292]
[1642275819550,28.80342907,3348.7,3348.6,1.3709802]
[1642275819749,29.63385457,3348.7,3348.6,1.3709802]
[1642275820896,30.41085457,3348.7,3348.6,1.3709802]
[1642275822298,29.58042907,3348.7,3348.6,1.3949562]
[1642275822696,29.58042907,3348.7,3348.6,1.5143562]
[1642275822898,29.58042907,3348.7,3348.6,3.22289384]
[1642275823297,29.58042907,3348.7,3348.6,1.3949562]
[1642275823499,29.58042907,3348.7,3348.6,2.1411962]
[1642275823903,29.58042907,3348.7,3348.6,2.1172202]
[1642275824102,30.35742907,3348.7,3348.6,2.1172202]
[1642275824747,30.35742907,3348.7,3348.6,2.97292684]
[1642275826048,30.35742907,3348.7,3348.6,3.09232684]
[1642275827251,31.13442907,3348.7,3348.6,3.09232684]
[1642275827852,31.13442907,3348.7,3348.6,3.10558784]
[1642275829302,31.13442907,3348.7,3348.6,3.09232684]
[1642275829698,31.13442907,3348.7,3348.6,2.2366202]
[1642275830302,31.13442907,3348.7,3348.6,2.1172202]
[1642275830499,31.91142907,3348.7,3348.6,2.1172202]
[1642275830900,31.91142907,3348.7,3348.6,3.46126366]
[1642275832163,31.91142907,3348.7,3348.6,1.3709802]
[1642275833749,32.68842907,3348.7,3348.6,1.3709802]
[1642275834150,32.56902907,3348.7,3348.6,1.3709802]
[1642275835053,32.68842907,3348.7,3348.6,1.3709802]
[1642275835653,32.56902907,3348.7,3348.6,1.3709802]
[1642275837099,33.34602907,3348.7,3348.6,1.3709802]
[1642275838509,33.34602907,3348.7,3348.6,1.3828022]
[1642275839097,33.34602907,3348.7,3348.6,1.3709802]
[1642275840347,34.12302907,3348.7,3348.6,1.3709802]
[1642275843602,34.90002907,3348.7,3348.6,1.3709802]
[1642275846904,35.67702907,3348.7,3348.6,1.3709802]
[1642275850055,36.45402907,3348.7,3348.6,1.3709802]
[1642275850894,39.00808915,3348.7,3348.6,1.3709802]
[1642275853299,39.78508915,3348.7,3348.6,1.3709802]
[1642275856450,40.56208915,3348.7,3348.6,1.3709802]
[1642275859098,40.68148915,3348.7,3348.6,1.3709802]
[1642275859699,41.45848915,3348.7,3348.6,1.3709802]
[1642275861600,41.37681282,3348.7,3348.6,1.3709802]
[1642275862348,42.20752603,3348.7,3348.6,1.3709802]
[1642275862947,42.98452603,3348.7,3348.6,1.3709802]
[1642275866194,43.76152603,3348.7,3348.6,1.3709802]
[1642275866997,43.64212603,3348.7,3348.6,1.3709802]
[1642275869659,44.41912603,3348.7,3348.6,1.3709802]
[1642275870951,44.53852603,3348.7,3348.6,1.3709802]
[1642275871349,43.70781282,3348.7,3348.6,1.3709802]
[1642275872552,43.58841282,3348.7,3348.6,1.3709802]
[1642275872856,44.36541282,3348.7,3348.6,1.3709802]
[1642275876005,45.14241282,3348.7,3348.6,1.3709802]
[1642275877645,45.14241282,3348.7,3348.3,0.010911]
[1642275877848,0.01176469,3348.6,3348.3,0.010911]
[1642275878047,0.82473186,3348.4,3348.3,0.010911]
[1642275878246,0.82473186,3348.4,3348.2,0.130311]
[1642275879250,1.49010374,3348.3,3348.2,0.130311]
[1642275879447,1.60173186,3348.4,3348.2,0.1194]
[1642275879648,1.60173186,3348.4,3348.2,0.00113685]
[1642275881198,1.60173186,3348.4,3348.3,1.14939274]
[1642275881795,1.60173186,3348.4,3348.2,0.00113685]
[1642275882596,2.37873186,3348.4,3348.2,0.00113685]
[1642275884658,2.37873186,3348.4,3348.2,0.02404508]
[1642275885048,2.37873186,3348.4,3348.2,0.00113685]
[1642275885851,3.15573186,3348.4,3348.2,0.00113685]
[1642275886460,2.331,3348.4,3348.2,0.00113685]
[1642275887254,2.331,3348.4,3348.2,0.00440821]
[1642275887856,2.331,3348.4,3348.2,0.00113685]
[1642275888257,2.331,3348.4,3348.2,1.83092657]
[1642275889105,3.108,3348.4,3348.2,1.95032657]
[1642275890099,3.108,3348.4,3348.2,1.83092657]
[1642275892348,3.885,3348.4,3348.2,1.83092657]
[1642275893549,3.885,3348.4,3348.2,1.95032657]
[1642275894750,3.885,3348.4,3348.2,0.13438285]
[1642275894950,3.885,3348.4,3348.2,1.95322342]
[1642275895349,4.662,3348.4,3348.2,1.95322342]
[1642275895549,4.662,3348.4,3348.2,0.13438285]
[1642275895998,4.662,3348.4,3348.2,1.90708374]
[1642275896199,4.662,3348.4,3348.2,1.78768374]
[1642275896801,4.662,3348.4,3348.2,0.01498285]
[1642275897199,4.662,3348.4,3348.3,0.1194]
[1642275898602,5.439,3348.4,3348.3,0.1194]
[1642275899749,5.439,3348.4,3348.2,0.13438285]
[1642275900350,2.55433224,3348.3,3348.2,0.13438285]
[1642275901048,5.439,3348.4,3348.2,3.93438285]
[1642275901852,6.216,3348.4,3348.2,0.13438285]
[1642275902551,6.216,3348.4,3348.2,0.01498285]
[1642275902952,2.55432626,3348.3,3348.2,0.01498285]
[1642275904202,6.216,3348.4,3348.2,0.01498285]
[1642275904401,6.216,3348.4,3348.2,0.02347132]
[1642275904601,6.216,3348.4,3348.2,1.77865584]
[1642275904808,6.216,3348.4,3348.2,0.01498285]
[1642275905004,6.993,3348.4,3348.2,0.01498285]
[1642275906405,6.993,3348.4,3348.1,0.74644]
[1642275906606,1.45417588,3348.3,3348.1,0.74644]
[1642275908151,6.993,3348.4,3348.1,0.74644]
[1642275908348,0.777,3348.3,3348.1,0.74644]
[1642275909553,0.07977398,3348.2,3348.1,0.74644]
[1642275909854,0.07977398,3348.2,3348.1,5.79644]
[1642275911507,0.85677398,3348.2,3348.1,5.79644]
[1642275914111,0.85677398,3348.2,3348.1,7.6261298]
[1642275914311,0.81688699,3348.2,3348.1,7.6261298]
[1642275914510,0.45677398,3348.2,3348.1,7.6261298]
[1642275914754,1.23377398,3348.2,3348.1,2.6525877]
[1642275916855,1.23377398,3348.2,3348.1,7.21767891]
[1642275917554,1.23377398,3348.2,3348.1,1.93798911]
[1642275917755,2.01077398,3348.2,3348.1,1.93798911]
[1642275918801,2.01077398,3348.2,3348.1,6.38798911]
[1642275920511,2.01077398,3348.2,3348.1,6.31153121]
[1642275921104,2.78777398,3348.2,3348.1,6.31153121]
[1642275922348,2.78777398,3348.2,3348.1,6.74053121]
[1642275924349,3.56477398,3348.2,3348.1,6.74053121]
[1642275924548,3.56477398,3348.2,3348.1,8.69993121]
[1642275924749,3.56477398,3348.2,3348.1,2.40993121]
[1642275925049,3.56477398,3348.2,3348.1,4.23277743]
[1642275925648,3.56477398,3348.2,3348.1,2.40993121]
[1642275925906,3.56477398,3348.2,3348.1,2.29053121]
[1642275927504,4.34177398,3348.2,3348.1,2.29053121]
[1642275927705,4.34177398,3348.2,3348.1,6.74053121]
[1642275928510,4.34177398,3348.2,3348.1,6.85993121]
[1642275929850,4.34177398,3348.2,3348.1,6.74053121]
[1642275930251,4.29177398,3348.2,3348.1,6.74053121]
[1642275930751,5.06877398,3348.2,3348.1,6.74053121]
[1642275931156,5.06877398,3348.2,3348.1,8.73390004]
[1642275931851,5.06877398,3348.2,3348.1,4.28390004]
[1642275932055,5.06877398,3348.2,3348.1,2.40993121]
[1642275933711,5.06877398,3348.2,3348.1,9.50993121]
[1642275934004,5.84577398,3348.2,3348.1,9.50993121]
[1642275934606,5.84577398,3348.2,3348.1,9.39053121]
[1642275937255,6.62277398,3348.2,3348.1,9.46698911]
[1642275938157,6.62277398,3348.2,3348.1,9.39053121]
[1642275940458,7.39977398,3348.2,3348.1,9.39053121]
[1642275940903,7.39977398,3348.2,3348.1,2.29053121]
[1642275941106,7.39977398,3348.2,3348.1,1.54409121]
[1642275943403,7.34977398,3348.2,3348.1,6.14409121]
[1642275943604,8.12677398,3348.2,3348.1,6.14409121]
[1642275945753,8.12677398,3348.2,3348.1,1.54409121]
[1642275946554,8.12677398,3348.2,3348.1,7.59409121]
[1642275946756,8.90377398,3348.2,3348.1,7.59409121]
[1642275949202,8.90377398,3348.2,3348.1,7.71349121]
[1642275949406,8.90377398,3348.2,3348.1,11.36349121]
[1642275950002,9.68077398,3348.2,3348.1,11.36349121]
[1642275950603,9.68077398,3348.2,3348.1,7.71349121]
[1642275950802,9.68077398,3348.2,3348.1,9.52072372]
[1642275951404,9.68077398,3348.2,3348.1,14.07072372]
[1642275951804,9.68077398,3348.2,3348.1,9.52072372]
[1642275953054,10.45777398,3348.2,3348.1,9.52072372]
[1642275953454,10.45777398,3348.2,3348.1,15.72072372]
[1642275953863,10.45777398,3348.2,3348.1,15.79718162]
[1642275954058,10.45777398,3348.2,3348.1,9.59718162]
[1642275954458,10.45777398,3348.2,3348.1,14.09718162]
[1642275955902,10.45777398,3348.2,3348.1,9.59718162]
[1642275956106,10.45777398,3348.2,3348.1,9.47778162]
[1642275956305,11.23477398,3348.2,3348.1,13.62778162]
[1642275958710,11.23477398,3348.2,3348.1,9.47778162]
[1642275959412,11.23477398,3348.2,3348.1,14.92778162]
[1642275959668,12.01177398,3348.2,3348.1,14.92778162]
[1642275960056,12.01177398,3348.2,3348.1,9.47778162]
[1642275961257,12.01177398,3348.2,3348.1,17.02778162]
[1642275961561,12.01177398,3348.2,3348.1,20.20098162]
[1642275961562,6.04262398,3348.2,3348.1,20.20098162]
[1642275961765,6.04262398,3348.2,3348.1,20.19778162]
[1642275961965,6.993,3348.4,3348.1,20.19858162]
[1642275961966,6.84400398,3348.4,3348.1,20.19858162]
[1642275962164,6.84400398,3348.4,3348.3,16.5201784]
[1642275962360,6.84400398,3348.4,3348.3,17.0685784]
[1642275962561,0.87633083,3348.4,3348.3,17.2594363]
[1642275962861,1.65333083,3348.4,3348.3,17.1450363]
[1642275964704,1.65333083,3348.4,3348.3,0.6248579]
[1642275964905,1.65333083,3348.4,3348.3,0.5054579]
[1642275965103,1.65333083,3348.4,3348.3,0.429]
[1642275965306,1.65333083,3348.4,3348.3,9.379]
[1642275966105,2.43033083,3348.4,3348.3,9.379]
[1642275969361,3.20733083,3348.4,3348.3,9.379]
[1642275971008,3.20733083,3348.4,3348.3,0.429]
[1642275971208,3.20733083,3348.4,3348.3,5.879]
[1642275972212,3.20733083,3348.4,3348.3,9.729]
[1642275972405,3.98433083,3348.4,3348.3,9.729]
[1642275975657,4.76133083,3348.4,3348.3,9.729]
[1642275975859,4.76133083,3348.4,3348.3,5.879]
[1642275976257,4.76133083,3348.4,3348.3,0.429]
[1642275976459,4.77247383,3348.4,3348.3,0.429]
[1642275977057,4.77247383,3348.4,3348.3,4.229]
[1642275978156,4.71133083,3348.4,3348.3,4.229]
[1642275978807,5.48833083,3348.4,3348.3,4.229]
[1642275980015,5.48833083,3348.4,3348.3,7.729]
[1642275980210,5.48833083,3348.4,3348.3,4.229]
[1642275981814,5.48833083,3348.4,3348.3,0.429]
[1642275982012,6.26533083,3348.4,3348.3,0.429]
[1642275983056,6.26533083,3348.4,3348.3,5.279]
[1642275984059,6.26533083,3348.4,3348.3,5.429]
[1642275985162,7.04233083,3348.4,3348.3,5.429]
[1642275985757,7.04233083,3348.4,3348.3,0.429]
[1642275986008,7.04233083,3348.4,3348.3,3.929]
[1642275986208,7.04233083,3348.4,3348.3,0.429]
[1642275988012,7.04233083,3348.4,3348.3,4.829]
[1642275988313,7.04233083,3348.4,3348.3,0.5484]
[1642275988612,7.81933083,3348.4,3348.3,0.5484]
[1642275989211,7.81933083,3348.4,3348.3,0.429]
[1642275991458,7.81933083,3348.4,3348.3,1.17529]
[1642275991756,8.59633083,3348.4,3348.3,1.17529]
[1642275992557,8.59519398,3348.4,3348.3,1.17529]
[1642275994813,9.37219398,3348.4,3348.3,1.17529]
[1642275997555,9.37219398,3348.4,3348.3,1.3711479]
[1642275997956,10.14919398,3348.4,3348.3,6.7711479]
[1642275998356,10.14919398,3348.4,3348.3,8.7711479]
[1642275998563,4.18005398,3348.4,3348.3,16.9711479]
[1642275998956,42.58835274,3348.7,3348.3,17.0863479]
[1642275999157,42.58835274,3348.7,3348.4,0.01904737]
[1642275999356,0.00227369,3348.6,3348.5,18.42049763]
[1642275999557,42.58835274,3348.7,3348.6,16.65]
[1642275999558,36.62219643,3348.7,3348.6,16.65]
[1642275999857,36.62219643,3348.7,3348.6,17.079]
[1642276000056,30.65388643,3348.7,3348.6,17.2674579]
[1642276000260,30.65388643,3348.7,3348.6,17.1554579]
[1642276000457,24.68538643,3348.7,3348.6,17.1554579]
[1642276001111,19.49387643,3348.7,3348.6,17.1554579]
[1642276001708,13.52546643,3348.7,3348.6,17.1554579]
[1642276001907,13.52546643,3348.7,3348.6,17.2748579]
[1642276004310,14.30246643,3348.7,3348.6,17.2748579]
[1642276004760,17.30246643,3348.7,3348.6,6.2554579]
[1642276005761,17.30246643,3348.7,3348.6,8.0210874]
[1642276005962,17.30246643,3348.7,3348.6,6.2554579]
[1642276006862,17.30246643,3348.7,3348.6,12.8554579]
[1642276007062,17.30246643,3348.7,3348.6,6.2554579]
[1642276007562,18.07946643,3348.7,3348.6,6.2554579]
[1642276008816,18.07946643,3348.7,3348.6,7.97242042]
[1642276009912,18.07946643,3348.7,3348.6,6.2554579]
[1642276010210,18.07946643,3348.7,3348.6,7.97311819]
[1642276010413,18.07946643,3348.7,3348.6,6.2554579]
[1642276010612,18.07946643,3348.7,3348.6,7.97650171]
[1642276010810,18.85646643,3348.7,3348.6,7.97650171]
[1642276012013,18.85646643,3348.7,3348.6,7.98097888]
[1642276012257,18.85646643,3348.7,3348.6,6.2554579]
[1642276013660,18.85646643,3348.7,3348.6,0.5054579]
[1642276014065,19.63346643,3348.7,3348.6,0.5054579]
[1642276014662,19.63346643,3348.7,3348.6,4.0554579]
[1642276016309,19.63346643,3348.7,3348.6,0.5054579]
[1642276016714,0.04400615,3348.6,3348.2,0.0764579]
[1642276016908,19.64622143,3348.7,3348.1,0.429]
[1642276016909,0.00841458,3348.4,3348.1,0.429]
[1642276017108,0.00841458,3348.4,3348.3,3.55170527]
[1642276017307,1.99937869,3348.4,3348.3,0.00170527]
[1642276017712,1.99937869,3348.4,3348.2,0.00227369]
[1642276018109,0.777,3348.4,3348.2,0.00227369]
[1642276018512,0.777,3348.4,3348.2,0.00604998]
[1642276018710,0.777,3348.4,3348.3,9.64624]
[1642276019669,0.777,3348.4,3348.3,0.74624]
[1642276020460,1.554,3348.4,3348.3,0.74624]
[1642276020662,1.554,3348.4,3348.3,9.29624]
[1642276021464,1.554,3348.4,3348.3,10.50727341]
[1642276021969,1.554,3348.4,3348.3,10.62667341]
[1642276023065,1.554,3348.4,3348.3,13.62667341]
[1642276023712,2.331,3348.4,3348.3,13.62667341]
[1642276025311,2.331,3348.4,3348.3,14.05567341]
[1642276026309,2.331,3348.4,3348.3,13.98100643]
[1642276026908,3.108,3348.4,3348.3,13.98100643]
[1642276027173,16.64437743,3348.7,3348.4,0.03748748]
[1642276027458,16.64437743,3348.7,3348.6,8.34224]
[1642276027756,16.63346643,3348.7,3348.6,8.34224]
[1642276027957,16.63346643,3348.7,3348.6,8.4186979]
[1642276030760,17.41046643,3348.7,3348.6,8.4186979]
[1642276033108,17.41046643,3348.7,3348.6,1.5686979]
[1642276033508,17.41046643,3348.7,3348.6,5.6686979]
[1642276033910,18.18746643,3348.7,3348.6,5.6686979]
[1642276035361,18.18746643,3348.7,3348.6,6.5399979]
[1642276035856,8.90231899,3348.7,3348.6,21.1399979]
[1642276036062,0.777,3348.9,3348.8,16.7]
[1642276036258,0.777,3348.9,3348.8,22.6084]
[1642276036259,0.71689893,3348.9,3348.8,22.6084]
[1642276036456,0.71689893,3348.9,3348.8,22.8112579]
[1642276036658,3.93276617,3349.3,3348.9,16.7]
[1642276036856,3.93276617,3349.3,3348.8,27.4522629]
[1642276036857,3.94367717,3349.3,3349.2,12.51]
[1642276037057,4.70976617,3349.3,3349.2,6.53502]
[1642276037463,4.70976617,3349.3,3349.2,19.91963362]
[1642276037657,4.70976617,3349.3,3349.2,21.08369152]
[1642276037861,4.70976617,3349.3,3349.2,8.72169152]
[1642276038513,1.53495114,3349.6,3349.3,13.7]
[1642276038709,1.53495114,3349.6,3349.4,0.429]
[1642276038910,0.00511581,3349.5,3349.4,0.429]
[1642276039313,1.52404014,3349.6,3349.5,7.8]
[1642276039512,0.81947185,3350.1,3349.8,0.74588]
[1642276039712,0.81947185,3350.1,3350.0,13.71262523]
[1642276039914,3.68221434,3350.2,3350.1,13.05]
[1642276040119,3.68221434,3350.2,3350.1,5.789]
[1642276040316,4.46319331,3350.2,3350.1,5.789]
[1642276041113,4.46319331,3350.2,3350.1,0.429]
[1642276041315,0.01665353,3350.1,3349.7,1.49176]
[1642276041516,2.0,3350.1,3349.7,1.49176]
[1642276041716,0.05718159,3349.9,3349.2,1.13461362]
[1642276041914,0.03054833,3349.7,3349.2,1.13461362]
[1642276042171,1.22271024,3349.5,3349.3,0.00113684]
[1642276042359,1.20321973,3349.5,3349.3,0.00113684]
[1642276042764,1.20321973,3349.5,3349.3,0.07759474]
[1642276042960,2.0,3350.0,3349.7,1.67624342]
[1642276043159,1.51104965,3349.9,3349.7,1.67624342]
[1642276043364,1.5121865,3349.9,3349.7,1.67624342]
[1642276043963,1.89414276,3349.8,3349.7,1.67624342]
[1642276045065,1.5121865,3349.9,3349.7,1.67624342]
[1642276046309,1.4621865,3349.9,3349.7,1.67624342]
[1642276046509,2.2391865,3349.9,3349.7,1.67624342]
[1642276047109,1.84270006,3349.8,3349.7,1.67624342]
[1642276047312,0.1194,3349.8,3349.7,1.67624342]
[1642276048109,1.97625421,3349.8,3349.7,1.67624342]
[1642276048509,2.2391865,3349.9,3349.7,1.67624342]
[1642276048510,4.06078844,3349.9,3349.7,1.67624342]
[1642276048709,1.80974237,3349.8,3349.7,1.67624342]
[1642276049857,2.58674237,3349.8,3349.7,1.67624342]
[1642276050660,0.02624981,3349.7,3349.2,1.88070362]
[1642276050865,0.82644981,3349.7,3349.1,1.32651706]
[1642276051061,0.01083179,3349.5,3349.1,1.32651706]
[1642276051260,0.1194,3349.4,3349.2,0.00113685]
[1642276051461,2.25385945,3349.4,3348.3,0.1194]
[1642276051661,1.46017482,3349.3,3348.3,0.1194]
[1642276051861,2.44126563,3349.2,3348.4,0.00454738]
[1642276052061,2.44126563,3349.2,3348.5,0.1194]
[1642276052463,1.46017482,3349.3,3348.6,0.00341054]
[1642276052464,0.0222382,3349.0,3348.6,0.00341054]
[1642276052763,1.28455186,3348.9,3348.5,0.00397896]
[1642276053261,2.06155186,3348.9,3348.5,0.00397896]
[1642276053513,2.06155186,3348.9,3348.1,0.00625266]
[1642276053910,0.8964,3348.9,3348.1,0.00625266]
[1642276054110,0.03612258,3348.8,3348.1,0.00625266]
[1642276054311,0.1194,3348.7,3348.1,0.00625266]
[1642276054513,0.1194,3348.7,3347.8,0.00795793]
[1642276054713,0.01508123,3348.6,3347.8,0.00795793]
[1642276054914,1.25914512,3348.0,3347.8,0.00795793]
[1642276055211,2.01334512,3348.0,3347.8,0.00795793]
[1642276055411,2.01334512,3348.0,3347.6,3.26035883]
[1642276055719,2.01334512,3348.0,3347.2,8.52417248]
[1642276055911,2.01334512,3348.0,3347.7,0.0764579]
[1642276056112,1.25914512,3348.0,3347.4,1.21010099]
[1642276056312,1.25914512,3348.0,3347.7,0.0764579]
[1642276056516,2.03614512,3348.0,3347.7,0.0764579]
[1642276057557,0.03024951,3347.9,3347.7,0.0764579]
[1642276057957,2.03614512,3348.0,3347.5,0.12110527]
[1642276058362,2.03614512,3348.0,3347.5,0.1194]
[1642276058557,0.00170527,3347.9,3347.5,0.06457694]
[1642276058958,3.3187092,3348.0,3347.5,0.06457694]
[1642276058959,0.02119038,3347.7,3347.5,0.06457694]
[1642276059158,0.00113684,3347.8,3347.2,6.52417248]
[1642276059359,0.00170527,3347.9,3347.3,0.1194]
[1642276059558,0.00170527,3347.9,3347.3,0.12110527]
[1642276059758,0.0276578,3347.7,3347.3,0.12110527]
[1642276060258,0.00113684,3347.8,3347.4,0.1194]
[1642276060460,0.00170527,3347.6,3347.4,0.1194]
[1642276060659,0.00227369,3347.7,3347.4,0.1194]
[1642276060913,0.00113684,3347.5,3347.4,0.1194]
[1642276061113,0.00170527,3347.6,3347.4,0.1194]
[1642276061410,0.00284211,3347.5,3347.4,0.1194]
[1642276061808,0.00113684,3347.5,3347.4,0.1194]
[1642276062209,0.00113684,3347.5,3347.4,9.1194]
[1642276062610,0.00113684,3347.5,3347.4,9.0]
[1642276063010,0.77813684,3347.5,3347.4,9.0]
[1642276065157,0.77813684,3347.5,3347.4,10.51161304]
[1642276066163,1.55513684,3347.5,3347.4,10.51161304]
[1642276067160,1.55513684,3347.5,3347.4,9.0]
[1642276068060,1.55513684,3347.5,3347.4,9.0764579]
[1642276069309,2.33213684,3347.5,3347.4,9.0764579]
[1642276071009,3.54257823,3347.5,3347.4,9.0764579]
[1642276071810,2.33213684,3347.5,3347.4,9.0764579]
[1642276072010,2.33213684,3347.5,3347.4,0.0764579]
[1642276072260,2.33213684,3347.5,3347.3,14.87645352]
[1642276072459,3.10913684,3347.5,3347.3,14.87645352]
[1642276072659,0.1194,3347.4,3347.3,14.87645352]
[1642276072858,1.336031,3347.4,3347.3,14.87645352]
[1642276073865,2.7995724,3347.4,3347.3,14.87645352]
[1642276074260,2.7995724,3347.4,3347.3,14.82360309]
[1642276074459,4.7032761,3347.4,3347.3,14.82360309]
[1642276074660,2.7995724,3347.4,3347.3,14.82360309]
[1642276075059,2.6801724,3347.4,3347.3,14.82360309]
[1642276075462,4.5404826,3347.4,3347.3,14.82360309]
[1642276075660,3.4571724,3347.4,3347.3,14.82360309]
[1642276076915,8.0071724,3347.4,3347.3,14.82360309]
[1642276077116,3.5765724,3347.4,3347.3,14.82360309]
[1642276078421,3.5765724,3347.4,3347.3,11.34043963]
[1642276078825,4.3535724,3347.4,3347.3,11.34043963]
[1642276081992,5.1305724,3347.4,3347.3,11.34043963]
[1642276082192,5.0805724,3347.4,3347.3,11.34043963]
[1642276082796,4.9611724,3347.4,3347.3,11.34043963]
[1642276085312,5.7381724,3347.4,3347.3,11.34043963]
[1642276088659,6.5151724,3347.4,3347.3,11.34043963]
[1642276091914,7.2921724,3347.4,3347.3,11.34043963]
[1642276093711,6.1255414,3347.4,3347.3,11.34043963]
[1642276093912,6.1255414,3347.4,3347.3,11.24043963]
[1642276095163,6.9025414,3347.4,3347.3,11.24043963]
[1642276098164,6.9025414,3347.4,3347.3,12.75178752]
[1642276098413,7.6795414,3347.4,3347.3,12.75178752]
[1642276099412,7.6795414,3347.4,3347.3,11.24043963]
[1642276099617,6.216,3347.4,3347.3,11.24043963]
[1642276100715,7.35309091,3347.4,3347.3,11.24043963]
[1642276101518,8.13009091,3347.4,3347.3,11.24043963]
[1642276103460,8.13009091,3347.4,3347.3,12.43744533]
[1642276104059,8.12206356,3347.4,3347.3,12.43744533]
[1642276104666,8.89906356,3347.4,3347.3,12.43744533]
[1642276106517,8.89906356,3347.4,3347.3,4.93844533]
[1642276106917,8.89906356,3347.4,3347.3,1.1970057]
[1642276108019,9.67606356,3347.4,3347.3,1.1970057]
[1642276110362,8.53897265,3347.4,3347.3,1.1970057]
[1642276111164,9.31597265,3347.4,3347.2,0.74658]
[1642276112262,9.31597265,3347.4,3347.3,1.32899459]
[1642276113266,1.13158529,3347.3,3347.2,0.74658]
[1642276114316,0.777,3347.3,3347.2,1.89598452]
[1642276114512,0.777,3347.3,3347.2,5.49658]
[1642276114712,0.777,3347.3,3347.2,7.32597035]
[1642276117464,1.554,3347.3,3347.2,7.32597035]
[1642276117863,1.554,3347.3,3347.2,0.74658]
[1642276118463,1.554,3347.3,3347.2,4.99658]
[1642276119064,1.554,3347.3,3347.2,0.74658]
[1642276119268,1.554,3347.3,3347.0,0.25544908]
[1642276119269,3.554,3347.3,3347.0,0.25544908]
[1642276119465,1.554,3347.3,3347.0,0.25544908]
[1642276119666,1.19246831,3347.1,3347.0,0.25544908]
[1642276120066,1.19246831,3347.1,3347.0,0.25715435]
[1642276120666,1.96946831,3347.1,3347.0,0.25715435]
[1642276123817,2.74646831,3347.1,3347.0,0.25715435]
[1642276124423,2.86596831,3347.1,3347.0,0.25715435]
[1642276125265,4.10487985,3347.1,3347.0,0.25715435]
[1642276126967,4.10487985,3347.1,3347.0,0.10715435]
[1642276127166,4.88187985,3347.1,3347.0,0.10715435]
[1642276129816,4.76237985,3347.1,3347.0,0.10715435]
[1642276130216,5.53937985,3347.1,3347.0,0.10715435]
[1642276133462,6.31637985,3347.1,3347.0,0.10715435]
[1642276136117,7.57816114,3347.1,3347.0,0.10715435]
[1642276136316,6.43587985,3347.1,3347.0,0.10715435]
[1642276136716,7.21287985,3347.1,3347.0,0.10715435]
[1642276137120,9.76817288,3347.1,3347.0,0.10715435]
[1642276138424,6.4,3347.0,3346.6,5.06042362]